fUST/lending_fUST_20240928
["ID","MTS","AMOUNT","RATE_DAILY","PERIOD"]
[339355342,1727463040470,-429.9175038,0.00019375,2]
[339355343,1727463040480,-151.26606185,0.00019396,2]
[339355344,1727463040490,-500.83278847,0.00019422,2]
[339355345,1727463040499,-500.0,0.00019422,2]
[339355346,1727463040510,-500.0,0.00019452,2]
[339355347,1727463040521,-1796.95,0.00019452,2]
[339355348,1727463040533,-500.0,0.00019452,2]
[339355349,1727463040555,-573.16,0.00019452,2]
[339355351,1727463040564,-500.0,0.00019452,2]
[339355352,1727463040574,-500.0,0.00019452,2]
[339355353,1727463040583,-649.65,0.00019452,2]
[339355354,1727463040592,-563.65,0.00019452,2]
[339355355,1727463040603,-716.29,0.00019452,2]
[339355356,1727463040612,-500.0,0.00019452,2]
[339355357,1727463040622,-500.0,0.00019452,2]
[339355358,1727463040631,-500.0,0.00019452,2]
[339355359,1727463040640,-593.38,0.00019452,2]
[339355360,1727463040650,-1388.3,0.00019452,2]
[339355361,1727463040661,-500.0,0.00019452,2]
[339355362,1727463040670,-200.0,0.00019452,2]
[339355363,1727463040679,-632.37,0.00019452,2]
[339355364,1727463040688,-809.04,0.00019452,2]
[339355365,1727463040698,-178.20980002,0.00019452,2]
[339355366,1727463040707,-187.06272016,0.00019452,2]
[339355367,1727463040717,-506.19,0.00019452,2]
[339355368,1727463040729,-714.42,0.00019452,2]
[339355369,1727463040740,-939.46,0.00019452,2]
[339355370,1727463040752,-500.0,0.00019452,2]
[339355371,1727463040764,-500.0,0.00019452,2]
[339355372,1727463040775,-7971.71,0.00019452,2]
[339355373,1727463040784,-500.0,0.00019452,2]
[339355374,1727463040795,-153.0,0.00019472,2]
[339355375,1727463040806,-153.0,0.00019472,2]
[339355376,1727463040817,-153.0,0.00019472,2]
[339355377,1727463040827,-153.0,0.00019472,2]
[339355378,1727463040839,-153.0,0.00019472,2]
[339355379,1727463040850,-153.0,0.00019472,2]
[339355380,1727463040860,-153.0,0.00019472,2]
[339355381,1727463040871,-153.0,0.00019472,2]
[339355382,1727463040881,-153.0,0.00019472,2]
[339355383,1727463040895,-153.0,0.00019472,2]
[339355384,1727463040908,-153.0,0.00019472,2]
[339355385,1727463040918,-153.0,0.00019472,2]
[339355386,1727463040931,-153.0,0.00019472,2]
[339355387,1727463040941,-153.0,0.00019472,2]
[339355388,1727463040951,-153.0,0.00019472,2]
[339355389,1727463040963,-153.0,0.00019472,2]
[339355390,1727463040973,-153.0,0.00019472,2]
[339355391,1727463040984,-153.0,0.00019472,2]
[339355392,1727463040996,-153.0,0.00019472,2]
[339355393,1727463041006,-153.0,0.00019472,2]
[339355394,1727463041016,-153.0,0.00019472,2]
[339355395,1727463041027,-153.0,0.00019472,2]
[339355396,1727463041039,-153.0,0.00019472,2]
[339355397,1727463041048,-153.0,0.00019472,2]
[339355398,1727463041058,-153.0,0.00019472,2]
[339355399,1727463041067,-153.0,0.00019472,2]
[339355400,1727463041077,-153.0,0.00019472,2]
[339355401,1727463041087,-153.0,0.00019472,2]
[339355402,1727463041097,-153.0,0.00019472,2]
[339355403,1727463041107,-153.0,0.00019472,2]
[339355404,1727463041119,-153.0,0.00019472,2]
[339355405,1727463041130,-153.0,0.00019472,2]
[339355406,1727463041139,-153.0,0.00019472,2]
[339355407,1727463041149,-153.0,0.00019472,2]
[339355408,1727463041159,-153.0,0.00019472,2]
[339355409,1727463041169,-153.0,0.00019472,2]
[339355410,1727463041179,-153.0,0.00019472,2]
[339355411,1727463041189,-153.0,0.00019472,2]
[339355412,1727463041198,-153.0,0.00019472,2]
[339355413,1727463041208,-153.0,0.00019472,2]
[339355414,1727463041218,-153.0,0.00019472,2]
[339355415,1727463041227,-153.0,0.00019472,2]
[339355416,1727463041237,-153.0,0.00019472,2]
[339355417,1727463041247,-153.0,0.00019472,2]
[339355418,1727463041256,-153.0,0.00019472,2]
[339355419,1727463041266,-153.0,0.00019472,2]
[339355420,1727463041276,-153.0,0.00019472,2]
[339355421,1727463041286,-153.0,0.00019472,2]
[339355422,1727463041295,-153.0,0.00019472,2]
[339355423,1727463041306,-153.0,0.00019472,2]
[339355424,1727463041315,-153.0,0.00019472,2]
[339355425,1727463041325,-153.0,0.00019472,2]
[339355426,1727463041334,-153.0,0.00019472,2]
[339355427,1727463041344,-153.0,0.00019472,2]
[339355428,1727463041354,-153.0,0.00019472,2]
[339355429,1727463041363,-153.0,0.00019472,2]
[339355430,1727463041372,-153.0,0.00019472,2]
[339355431,1727463041381,-153.0,0.00019472,2]
[339355432,1727463041391,-153.0,0.00019472,2]
[339355433,1727463041401,-153.0,0.00019472,2]
[339355434,1727463041410,-153.0,0.00019472,2]
[339355435,1727463041419,-153.0,0.00019472,2]
[339355436,1727463041429,-153.0,0.00019472,2]
[339355437,1727463041439,-153.0,0.00019472,2]
[339355438,1727463041449,-153.0,0.00019472,2]
[339355439,1727463041459,-153.0,0.00019472,2]
[339355440,1727463041468,-153.0,0.00019472,2]
[339355441,1727463041478,-153.0,0.00019472,2]
[339355442,1727463041487,-153.0,0.00019472,2]
[339355443,1727463041497,-153.0,0.00019472,2]
[339355444,1727463041507,-153.0,0.00019472,2]
[339355445,1727463041516,-153.0,0.00019472,2]
[339355446,1727463041526,-153.0,0.00019472,2]
[339355447,1727463041536,-153.0,0.00019472,2]
[339355448,1727463041547,-153.0,0.00019472,2]
[339355449,1727463041556,-153.0,0.00019472,2]
[339355450,1727463041566,-153.0,0.00019472,2]
[339355451,1727463041576,-153.0,0.00019472,2]
[339355452,1727463041586,-153.0,0.00019472,2]
[339355453,1727463041596,-153.0,0.00019472,2]
[339355454,1727463041605,-153.0,0.00019472,2]
[339355455,1727463041614,-153.0,0.00019472,2]
[339355456,1727463041623,-153.0,0.00019472,2]
[339355457,1727463041633,-153.0,0.00019472,2]
[339355458,1727463041643,-153.0,0.00019472,2]
[339355459,1727463041653,-153.0,0.00019472,2]
[339355460,1727463041662,-153.0,0.00019472,2]
[339355461,1727463041672,-153.0,0.00019472,2]
[339355462,1727463041681,-153.0,0.00019472,2]
[339355463,1727463041690,-153.0,0.00019472,2]
[339355464,1727463041700,-153.0,0.00019472,2]
[339355465,1727463041709,-153.0,0.00019472,2]
[339355466,1727463041718,-153.0,0.00019472,2]
[339355467,1727463041728,-153.0,0.00019472,2]
[339355468,1727463041737,-153.0,0.00019472,2]
[339355469,1727463041747,-153.0,0.00019472,2]
[339355470,1727463041756,-153.0,0.00019472,2]
[339355471,1727463041767,-153.0,0.00019472,2]
[339355472,1727463041777,-153.0,0.00019472,2]
[339355473,1727463041788,-155.0,0.00019472,2]
[339355474,1727463041797,-155.0,0.00019472,2]
[339355475,1727463041807,-155.0,0.00019472,2]
[339355476,1727463041817,-155.0,0.00019472,2]
[339355477,1727463041827,-155.0,0.00019472,2]
[339355478,1727463041837,-155.0,0.00019472,2]
[339355479,1727463041847,-165.0,0.00019472,2]
[339355480,1727463041857,-165.0,0.00019472,2]
[339355481,1727463041989,-165.0,0.00019472,2]
[339355482,1727463042001,-153.0,0.00019472,2]
[339355483,1727463042011,-153.0,0.00019472,2]
[339355484,1727463042021,-153.0,0.00019472,2]
[339355485,1727463042031,-153.0,0.00019472,2]
[339355486,1727463042043,-153.0,0.00019478,2]
[339355487,1727463042052,-153.0,0.00019478,2]
[339355488,1727463042064,-153.0,0.00019478,2]
[339355489,1727463042073,-153.0,0.00019478,2]
[339355490,1727463042083,-153.0,0.00019478,2]
[339355491,1727463042094,-500.0,0.00019556,2]
[339355492,1727463042103,-500.0,0.00019586,2]
[339355493,1727463042113,-151.0,0.0001959,2]
[339355494,1727463042123,-512.1276083,0.00019609,2]
[339355495,1727463042133,-240.2192446,0.00019609,2]
[339355496,1727463042144,-546.48274883,0.00019609,2]
[339355497,1727463042154,-500.0,0.00019609,2]
[339355498,1727463042165,-500.0,0.00019609,2]
[339355499,1727463042175,-500.0,0.00019609,2]
[339355500,1727463042185,-557.17544349,0.00019609,2]
[339355501,1727463042198,-500.0,0.00019609,2]
[339355502,1727463042209,-500.0,0.00019609,2]
[339355503,1727463042219,-500.0,0.00019609,2]
[339355504,1727463042230,-6226.89355146,0.0001961,2]
[339355505,1727463042239,-163.11750756,0.00019626,2]
[339355506,1727463042249,-163.11750756,0.00019695,2]
[339355507,1727463042259,-544.55,0.00019706,3]
[339355508,1727463042269,-755.48370846,0.00019716,2]
[339355509,1727463042278,-39627.66911792,0.00019716,3]
[339355510,1727463042296,-7098.25620548,0.00019716,3]
[339355511,1727463042307,-21488.13116077,0.00019716,3]
[339355512,1727463042320,-35909.41480337,0.00019716,3]
[339355523,1727463043203,-2466.80869049,0.00019716,3]
[339355568,1727463046093,-2353.3517523,0.00019716,3]
[339355604,1727463442074,10000.0,0.00021,120]
[339355605,1727463454218,10000.0,0.00021,120]
[339355609,1727463945149,-167.0213131,0.00017778,2]
[339355610,1727463945172,-157.8103,0.00018088,2]
[339355611,1727463945196,-1206.5914815,0.00018185,2]
[339355612,1727463945220,-157.8103,0.00018559,2]
[339355613,1727463945242,-6533.3230275,0.00018673,2]
[339355614,1727463945264,-228.24824247,0.00018804,2]
[339355615,1727463945462,-500.0,0.00018904,2]
[339355616,1727463945485,-192.65708022,0.00018972,2]
[339355674,1727464232183,-700.0,0.00018972,2]
[339355676,1727464232192,-1000.0,0.00019,19]
[339355678,1727464232202,-157.8103,0.0001903,2]
[339355680,1727464232212,-300.0,0.00019177,2]
[339355682,1727464232221,-300.0,0.00019177,2]
[339355684,1727464232231,-500.0,0.00019178,2]
[339355686,1727464232240,-568.28,0.00019178,2]
[339355688,1727464232250,-545.27,0.00019178,2]
[339355690,1727464232259,-500.0,0.00019178,2]
[339355692,1727464232269,-693.24,0.00019178,2]
[339355695,1727464232278,-571.48037306,0.00019178,2]
[339355697,1727464232288,-500.0,0.00019178,2]
[339355699,1727464232298,-572.93,0.00019178,2]
[339355701,1727464232308,-535.78,0.00019178,2]
[339355703,1727464232324,-500.0,0.00019178,2]
[339355705,1727464232337,-443.65,0.00019178,2]
[339355707,1727464232347,-500.0,0.00019178,2]
[339355709,1727464232356,-500.0,0.00019178,2]
[339355711,1727464232366,-531.63780286,0.00019178,2]
[339355713,1727464232375,-243.78557299,0.00019178,2]
[339355715,1727464232385,-302.83364127,0.00019178,2]
[339355717,1727464232395,-500.0,0.00019178,2]
[339355720,1727464232406,-500.0,0.00019178,2]
[339355722,1727464232416,-500.0,0.00019178,2]
[339355723,1727464232426,-510.17944481,0.00019178,2]
[339355725,1727464232436,-500.0,0.00019178,2]
[339355728,1727464232445,-500.0,0.00019178,2]
[339355730,1727464232455,-500.0,0.00019178,2]
[339355748,1727464232616,-410.06289939,0.00019178,2]
[339355750,1727464232627,-500.0,0.00019178,2]
[339355752,1727464232636,-500.0,0.00019178,2]
[339355754,1727464232645,-645.7,0.00019178,2]
[339355756,1727464232655,-500.0,0.00019178,2]
[339355758,1727464232664,-510.47063791,0.00019178,2]
[339355760,1727464232675,-500.0,0.00019178,2]
[339355761,1727464232684,-729.48,0.00019178,2]
[339355762,1727464232694,-500.0,0.00019178,2]
[339355763,1727464232703,-914.41,0.00019178,2]
[339355764,1727464232712,-500.0,0.00019178,2]
[339355765,1727464232721,-487.52746367,0.00019178,2]
[339355766,1727464232731,-500.0,0.00019178,2]
[339355767,1727464232740,-500.0,0.00019178,2]
[339355768,1727464232750,-1417.93,0.00019178,2]
[339355769,1727464232759,-500.0,0.00019178,2]
[339355770,1727464232768,-471.06494316,0.00019178,2]
[339355771,1727464232777,-500.0,0.00019178,2]
[339355772,1727464232787,-828.18,0.00019178,2]
[339355773,1727464232797,-7735.43,0.00019178,2]
[339355774,1727464232806,-197.742887,0.00019178,2]
[339355775,1727464232815,-580.97,0.00019374,2]
[339355776,1727464232826,-199.72,0.00019374,2]
[339355777,1727464232836,-205.44314387,0.00019374,2]
[339355778,1727464232845,-200.0,0.00019374,2]
[339355779,1727464232855,-500.0,0.00019374,2]
[339355780,1727464232865,-659.71,0.00019374,2]
[339355781,1727464232874,-500.0,0.00019374,2]
[339355782,1727464232884,-500.0,0.00019374,2]
[339355783,1727464232893,-500.0,0.00019374,2]
[339355784,1727464232903,-500.0,0.00019374,2]
[339355785,1727464232913,-500.0,0.00019374,2]
[339355786,1727464232924,-500.0,0.00019374,2]
[339355787,1727464232934,-500.0,0.00019374,2]
[339355788,1727464232943,-511.59218977,0.00019374,2]
[339355789,1727464232953,-1727.17,0.00019374,2]
[339355790,1727464232962,-503.90772533,0.00019374,2]
[339355791,1727464232971,-507.33275191,0.00019374,2]
[339355792,1727464232980,-500.0,0.00019374,2]
[339355793,1727464232989,-6561.6968465,0.0001938,2]
[339355794,1727464232999,-500.0,0.00019452,2]
[339355795,1727464233009,-545.27,0.00019452,2]
[339355796,1727464233019,-500.0,0.00019452,2]
[339355797,1727464233029,-693.24,0.00019452,2]
[339355798,1727464233038,-500.0,0.00019452,2]
[339355799,1727464233048,-572.93,0.00019452,2]
[339355800,1727464233057,-500.0,0.00019452,2]
[339355801,1727464233066,-500.0,0.00019452,2]
[339355802,1727464233075,-500.0,0.00019452,2]
[339355803,1727464233085,-645.7,0.00019452,2]
[339355804,1727464233094,-500.0,0.00019452,2]
[339355805,1727464233103,-729.48,0.00019452,2]
[339355806,1727464233113,-500.0,0.00019452,2]
[339355807,1727464233122,-914.41,0.00019452,2]
[339355808,1727464233132,-500.0,0.00019452,2]
[339355809,1727464233141,-1417.93,0.00019452,2]
[339355810,1727464233151,-500.0,0.00019452,2]
[339355811,1727464233161,-828.18,0.00019452,2]
[339355812,1727464233170,-7735.43,0.00019452,2]
[339355813,1727464233190,-153.0,0.00019464,2]
[339355814,1727464233200,-153.0,0.00019464,2]
[339355815,1727464233210,-153.0,0.00019464,2]
[339355816,1727464233219,-153.0,0.00019464,2]
[339355817,1727464233229,-153.0,0.00019464,2]
[339355818,1727464233239,-153.0,0.00019464,2]
[339355819,1727464233249,-153.0,0.00019464,2]
[339355820,1727464233258,-153.0,0.00019464,2]
[339355821,1727464233268,-153.0,0.00019464,2]
[339355822,1727464233277,-153.0,0.00019464,2]
[339355823,1727464233287,-153.0,0.00019464,2]
[339355824,1727464233296,-153.0,0.00019464,2]
[339355825,1727464233306,-153.0,0.00019464,2]
[339355826,1727464233320,-153.0,0.00019464,2]
[339355827,1727464233329,-153.0,0.00019464,2]
[339355828,1727464233339,-153.0,0.00019464,2]
[339355829,1727464233348,-153.0,0.00019464,2]
[339355830,1727464233359,-153.0,0.00019464,2]
[339355831,1727464233368,-153.0,0.00019464,2]
[339355832,1727464233378,-153.0,0.00019464,2]
[339355833,1727464233389,-153.0,0.00019464,2]
[339355834,1727464233398,-153.0,0.00019464,2]
[339355835,1727464233407,-153.0,0.00019464,2]
[339355836,1727464233417,-153.0,0.00019464,2]
[339355837,1727464233432,-153.0,0.00019464,2]
[339355838,1727464233447,-153.0,0.00019464,2]
[339355839,1727464233458,-153.0,0.00019464,2]
[339355840,1727464233467,-153.0,0.00019464,2]
[339355841,1727464233476,-153.0,0.00019464,2]
[339355842,1727464233486,-153.0,0.00019464,2]
[339355843,1727464233495,-153.0,0.00019464,2]
[339355844,1727464233504,-465.40322394,0.0001948,2]
[339355845,1727464233514,-532.07990838,0.00019626,2]
[339355846,1727464233524,-532.07990838,0.00019637,2]
[339355847,1727464233534,-580.97,0.00019648,2]
[339355848,1727464233544,-200.0,0.00019648,2]
[339355849,1727464233553,-500.0,0.00019648,2]
[339355850,1727464233563,-659.71,0.00019648,2]
[339355851,1727464233572,-500.0,0.00019648,2]
[339355852,1727464233582,-500.0,0.00019648,2]
[339355853,1727464233592,-500.0,0.00019648,2]
[339355854,1727464233601,-1727.17,0.00019648,2]
[339355855,1727464233610,-500.0,0.00019648,2]
[339355856,1727464233620,-532.07990838,0.00019648,2]
[339355857,1727464233629,-532.07990838,0.00019659,2]
[339355858,1727464233639,-532.07990838,0.0001967,2]
[339355859,1727464233650,-3067.28324026,0.0001969,2]
[339355860,1727464233660,-1000.0,0.000197,3]
[339355861,1727464233670,-1000.0,0.000197,2]
[339355862,1727464233685,-890.52,0.00019706,3]
[339355863,1727464233696,-500.0,0.00019715,2]
[339355864,1727464233706,-421.98016114,0.00019715,2]
[339355865,1727464233715,-168.15347123,0.00019715,2]
[339355866,1727464233724,-434.19629163,0.00019715,2]
[339355867,1727464233734,-500.0,0.00019715,2]
[339355868,1727464233744,-319.97286682,0.00019715,2]
[339355869,1727464233755,-500.0,0.00019715,2]
[339355870,1727464233766,-500.0,0.00019715,2]
[339355871,1727464233776,-500.0,0.00019715,2]
[339355872,1727464233786,-755.48370846,0.00019716,2]
[339355873,1727464233796,-58026.2570161,0.00019716,3]
[339355874,1727464233806,-77625.2494715,0.00019716,3]
[339355875,1727464233815,-188286.55305501,0.00019726,2]
[339355876,1727464233825,-500.0,0.00019726,2]
[339355877,1727464233835,-545.27,0.00019726,2]
[339355878,1727464233844,-500.0,0.00019726,2]
[339355879,1727464233854,-693.24,0.00019726,2]
[339355880,1727464233863,-500.0,0.00019726,2]
[339355881,1727464233873,-572.93,0.00019726,2]
[339355882,1727464233882,-500.0,0.00019726,2]
[339355883,1727464233892,-500.0,0.00019726,2]
[339355884,1727464233907,-645.7,0.00019726,2]
[339355885,1727464233921,-729.48,0.00019726,2]
[339355886,1727464233937,-914.41,0.00019726,2]
[339355887,1727464233950,-500.0,0.00019726,2]
[339355888,1727464233965,-1417.93,0.00019726,2]
[339355889,1727464233977,-828.18,0.00019726,2]
[339355890,1727464233988,-7735.43,0.00019726,2]
[339355891,1727464234001,-744.79812314,0.0001976,2]
[339355892,1727464234014,-580.97,0.00019768,2]
[339355893,1727464234027,-580.97,0.00019768,2]
[339355894,1727464234039,-580.97,0.00019768,2]
[339355895,1727464234052,-8917.81775602,0.00019769,3]
[339355896,1727464234071,-2234.52878022,0.00019769,3]
[339355897,1727464234086,-350.23752855,0.00019769,3]
[339355902,1727464238202,-11598.54830454,0.00019725,2]
[339355903,1727464238218,-7749.864472,0.00019725,2]
[339355923,1727464240125,-71555.81511987,0.00019725,2]
[339355924,1727464240136,-184975.17769349,0.00019769,3]
[339355925,1727464240190,-6254.4,0.00019769,3]
[339355926,1727464240206,-87399.12332172,0.00019769,3]
[339355927,1727464240218,-149359.52955332,0.00019769,3]
[339355955,1727464243405,-1240.69,0.00019178,2]
[339355956,1727464243416,-1240.69,0.00019452,2]
[339355957,1727464243428,-888.08319386,0.00019572,2]
[339355958,1727464243482,-544.55,0.00019572,2]
[339355959,1727464243497,-1028.95,0.00019572,2]
[339355977,1727464246294,-6243.3,0.00019572,2]
[339355978,1727464246309,-2262.0525197,0.00019572,2]
[339355979,1727464263232,168.10923161,0.00018758,2]
[339355985,1727465139151,-170.1655439,0.00017202,2]
[339355986,1727465139173,-19.78467084,0.00017236,2]
[339355987,1727465191091,-157.41155547,0.00017236,2]
[339355988,1727465236112,-2822.80377369,0.00017236,2]
[339355989,1727465236135,-315.514464,0.00017319,2]
[339355990,1727465236157,-600.0,0.00017385,2]
[339355991,1727465236179,-250.0,0.00017405,2]
[339355992,1727465236200,-315.514464,0.00018004,2]
[339355993,1727465236221,-300.0,0.00018102,2]
[339355994,1727465236243,-300.0,0.00018102,2]
[339355995,1727465236266,-422.8343388,0.00018102,2]
[339355996,1727465236293,-5083.67350334,0.00018103,2]
[339355997,1727465353128,-300.0,0.00018102,2]
[339355998,1727465353155,-300.0,0.00018102,2]
[339355999,1727465353182,-4306.59677505,0.00018103,2]
[339356008,1727465401086,15499.7297216,0.00017941,2]
[339356045,1727465432294,-308.43749623,0.00018119,2]
[339356052,1727465432348,-291.56250377,0.00018119,2]
[339356054,1727465432358,-500.0,0.000186,2]
[339356056,1727465432367,-315.514464,0.00018689,2]
[339356058,1727465432376,-600.0,0.00018781,2]
[339356060,1727465432385,-600.0,0.00018781,2]
[339356062,1727465432398,-600.0,0.00018781,2]
[339356064,1727465432407,-600.0,0.00018876,2]
[339356066,1727465432416,-500.0,0.00018904,2]
[339356068,1727465432426,-700.0,0.00018972,2]
[339356070,1727465432436,-600.0,0.00018991,2]
[339356072,1727465432445,-600.0,0.00018991,2]
[339356074,1727465432454,-600.0,0.00018991,2]
[339356076,1727465432463,-600.0,0.00018991,2]
[339356078,1727465432473,-600.0,0.00018991,2]
[339356080,1727465432485,-500.0,0.00019,2]
[339356083,1727465432497,-600.0,0.00019,2]
[339356085,1727465432507,-600.0,0.00019,2]
[339356087,1727465432518,-600.0,0.00019,2]
[339356089,1727465432528,-600.0,0.00019,2]
[339356091,1727465432538,-600.0,0.00019,2]
[339356093,1727465432549,-600.0,0.00019,2]
[339356095,1727465432558,-902.34138244,0.00019,2]
[339356097,1727465432568,-502.35449225,0.00019,2]
[339356099,1727465432578,-151.0,0.000191,2]
[339356101,1727465432588,-500.0,0.00019148,2]
[339356103,1727465432597,-6450.09574822,0.00019173,2]
[339356105,1727465432607,-500.0,0.00019178,2]
[339356107,1727465432618,-500.0,0.00019178,2]
[339356109,1727465432628,-562.65,0.00019178,2]
[339356111,1727465432639,-604.74,0.00019178,2]
[339356113,1727465432651,-625.9,0.00019178,2]
[339356115,1727465432661,-1137.3,0.00019178,2]
[339356117,1727465432670,-724.65,0.00019178,2]
[339356119,1727465432679,-6768.5,0.00019178,2]
[339356121,1727465432689,-6450.09574822,0.00019256,2]
[339356123,1727465432700,-600.0,0.00019295,2]
[339356125,1727465432711,-600.0,0.00019295,2]
[339356127,1727465432721,-200.0,0.00019373,2]
[339356129,1727465432731,-500.0,0.00019373,2]
[339356131,1727465432742,-500.0,0.00019373,2]
[339356133,1727465432752,-500.0,0.00019373,2]
[339356135,1727465432763,-1583.24,0.00019373,2]
[339356137,1727465432773,-500.0,0.00019373,2]
[339356140,1727465432783,-500.0,0.00019373,2]
[339356142,1727465432793,-500.0,0.00019373,2]
[339356144,1727465432804,-500.0,0.00019373,2]
[339356146,1727465432814,-606.58,0.00019373,2]
[339356148,1727465432825,-500.0,0.00019374,2]
[339356150,1727465432837,-501.31,0.00019374,2]
[339356153,1727465432849,-564.99,0.00019374,2]
[339356155,1727465432859,-638.29,0.00019374,2]
[339356157,1727465432868,-800.11,0.00019374,2]
[339356159,1727465432878,-500.0,0.00019452,2]
[339356161,1727465432887,-500.0,0.00019452,2]
[339356163,1727465432897,-562.65,0.00019452,2]
[339356164,1727465432906,-604.74,0.00019452,2]
[339356166,1727465432916,-1137.3,0.00019452,2]
[339356168,1727465432925,-724.65,0.00019452,2]
[339356171,1727465432934,-6768.5,0.00019452,2]
[339356173,1727465432944,-153.0,0.00019466,2]
[339356175,1727465432953,-153.0,0.00019466,2]
[339356177,1727465432963,-153.0,0.00019466,2]
[339356178,1727465432973,-153.0,0.00019466,2]
[339356180,1727465432982,-153.0,0.00019466,2]
[339356181,1727465432992,-153.0,0.00019466,2]
[339356183,1727465433001,-153.0,0.00019466,2]
[339356185,1727465433013,-153.0,0.00019466,2]
[339356186,1727465433027,-153.0,0.00019466,2]
[339356187,1727465433038,-153.0,0.00019466,2]
[339356188,1727465433047,-153.0,0.00019466,2]
[339356189,1727465433233,-153.0,0.00019466,2]
[339356190,1727465433243,-153.0,0.00019466,2]
[339356191,1727465433253,-153.0,0.00019466,2]
[339356192,1727465433266,-153.0,0.00019466,2]
[339356193,1727465433275,-153.0,0.00019466,2]
[339356194,1727465433284,-153.0,0.00019466,2]
[339356195,1727465433294,-153.0,0.00019466,2]
[339356196,1727465433303,-153.0,0.00019466,2]
[339356197,1727465433312,-153.0,0.00019466,2]
[339356198,1727465433321,-153.0,0.00019466,2]
[339356199,1727465433330,-153.0,0.00019466,2]
[339356200,1727465433339,-153.0,0.00019466,2]
[339356201,1727465433348,-153.0,0.00019466,2]
[339356202,1727465433358,-153.0,0.00019466,2]
[339356203,1727465433368,-153.0,0.00019466,2]
[339356204,1727465433377,-153.0,0.00019466,2]
[339356205,1727465433386,-153.0,0.00019466,2]
[339356206,1727465433397,-153.0,0.00019466,2]
[339356207,1727465433406,-153.0,0.00019466,2]
[339356208,1727465433416,-153.0,0.00019466,2]
[339356209,1727465433425,-153.0,0.00019466,2]
[339356210,1727465433435,-153.0,0.00019466,2]
[339356211,1727465433445,-153.0,0.00019466,2]
[339356212,1727465433454,-153.0,0.00019466,2]
[339356213,1727465433465,-153.0,0.00019466,2]
[339356214,1727465433474,-153.0,0.00019466,2]
[339356215,1727465433484,-153.0,0.00019466,2]
[339356216,1727465433494,-153.0,0.00019466,2]
[339356217,1727465433503,-153.0,0.00019466,2]
[339356218,1727465433514,-153.0,0.00019466,2]
[339356219,1727465433523,-1000.0,0.000195,2]
[339356220,1727465433534,-150.0,0.00019502,2]
[339356221,1727465433543,-1309.24706468,0.00019538,2]
[339356222,1727465433553,-619.47843087,0.00019572,2]
[339356223,1727465433564,-1309.24706467,0.00019601,2]
[339356224,1727465433573,-151.0,0.0001961,2]
[339356225,1727465433582,-511.33900566,0.00019627,2]
[339356226,1727465433591,-189.77320324,0.00019627,2]
[339356227,1727465433601,-467.88222879,0.00019627,2]
[339356228,1727465433610,-500.0,0.00019627,2]
[339356229,1727465433620,-327.77000332,0.00019627,2]
[339356230,1727465433631,-500.0,0.00019627,2]
[339356231,1727465433641,-500.0,0.00019627,2]
[339356232,1727465433650,-500.0,0.00019627,2]